[Event "Early Titled Tuesday Blitz | February 8 2022"]
[White "Zaichenko, Daria"]
[Black "Sokolovsky, Yahli"]
[WhiteFideId "4197453"]
[BlackFideId "2820242"]
[WhiteElo "2039"]
[BlackElo "1770"]
[Result "1-0"]
[Round "03"]
[TimeControl "180+1"]
[Date "2022.02.08"]
[WhiteClock "0:00:06"]
[BlackClock "0:00:09"]

1. e4 {[%clk 0:03:00]}  g6 {[%clk 0:02:58]} 2. d4 {[%clk 0:02:59]}  Bg7 {[%clk 0:02:58]} 3. Nc3 {[%clk 0:02:59]}  d6 {[%clk 0:02:59]} 4. f4 {[%clk 0:02:59]}  Nf6 {[%clk 0:02:51]} 5. Nf3 {[%clk 0:02:58]}  O-O {[%clk 0:02:51]} 6. Bd3 {[%clk 0:02:57]}  c5 {[%clk 0:02:47]} 7. d5 {[%clk 0:02:52]}  e6 {[%clk 0:02:37]} 8. dxe6 {[%clk 0:02:47]}  fxe6 {[%clk 0:02:23]} 9. Be3 {[%clk 0:02:47]}  Nc6 {[%clk 0:02:23]} 10. e5 {[%clk 0:02:44]}  Ng4 {[%clk 0:02:15]} 11. Qe2 {[%clk 0:02:42]}  Nxe3 {[%clk 0:02:08]} 12. Qxe3 {[%clk 0:02:41]}  dxe5 {[%clk 0:02:09]} 13. fxe5 {[%clk 0:02:37]}  Nd4 {[%clk 0:01:38]} 14. O-O-O {[%clk 0:02:30]}  Nxf3 {[%clk 0:01:20]} 15. gxf3 {[%clk 0:02:19]}  Qh4 {[%clk 0:01:20]} 16. Qxc5 {[%clk 0:02:12]}  Qf4+ {[%clk 0:01:18]} 17. Kb1 {[%clk 0:02:10]}  Qxe5 {[%clk 0:01:17]} 18. Qc4 {[%clk 0:02:04]}  Bd7 {[%clk 0:01:08]} 19. Bxg6 {[%clk 0:02:02]}  hxg6 {[%clk 0:00:30]} 20. Rxd7 {[%clk 0:02:00]}  Rac8 {[%clk 0:00:30]} 21. Qh4 {[%clk 0:01:50]}  Rxc3 {[%clk 0:00:25]} 22. bxc3 {[%clk 0:01:41]}  Qxc3 {[%clk 0:00:26]} 23. Rxg7+ {[%clk 0:01:39]}  Kxg7 {[%clk 0:00:21]} 24. Qe7+ {[%clk 0:01:37]}  Rf7 {[%clk 0:00:21]} 25. Qxe6 {[%clk 0:01:36]}  Qxf3 {[%clk 0:00:21]} 26. Rg1 {[%clk 0:01:33]}  Qf5 {[%clk 0:00:17]} 27. Qe3 {[%clk 0:01:24]}  Rf6 {[%clk 0:00:05]} 28. h4 {[%clk 0:01:19]}  Qb5+ {[%clk 0:00:05]} 29. Kc1 {[%clk 0:01:14]}  Qd7 {[%clk 0:00:02]} 30. h5 {[%clk 0:01:04]}  Qf7 {[%clk 0:00:02]} 31. Qe5 {[%clk 0:00:58]}  Kg8 {[%clk 0:00:01]} 32. hxg6 {[%clk 0:00:45]}  Rxg6 {[%clk 0:00:02]} 33. Rxg6+ {[%clk 0:00:44]}  Qxg6 {[%clk 0:00:03]} 34. Qb8+ {[%clk 0:00:44]}  Kg7 {[%clk 0:00:04]} 35. Qxb7+ {[%clk 0:00:43]}  Kh6 {[%clk 0:00:04]} 36. Qxa7 {[%clk 0:00:43]}  Qg5+ {[%clk 0:00:05]} 37. Kb2 {[%clk 0:00:40]}  Qb5+ {[%clk 0:00:06]} 38. Ka3 {[%clk 0:00:35]}  Qc4 {[%clk 0:00:02]} 39. Qa4 {[%clk 0:00:33]}  Qc3+ {[%clk 0:00:02]} 40. Qb3 {[%clk 0:00:32]}  Qa5+ {[%clk 0:00:02]} 41. Kb2 {[%clk 0:00:32]}  Qe5+ {[%clk 0:00:03]} 42. Qc3 {[%clk 0:00:25]}  Qb5+ {[%clk 0:00:03]} 43. Kc1 {[%clk 0:00:24]}  Qf1+ {[%clk 0:00:03]} 44. Kb2 {[%clk 0:00:21]}  Qb5+ {[%clk 0:00:04]} 45. Qb3 {[%clk 0:00:21]}  Qe5+ {[%clk 0:00:05]} 46. c3 {[%clk 0:00:21]}  Qe2+ {[%clk 0:00:05]} 47. Qc2 {[%clk 0:00:21]}  Qb5+ {[%clk 0:00:06]} 48. Kc1 {[%clk 0:00:21]}  Qf1+ {[%clk 0:00:06]} 49. Qd1 {[%clk 0:00:20]}  Qc4 {[%clk 0:00:05]} 50. Qd2+ {[%clk 0:00:20]}  Kg6 {[%clk 0:00:04]} 51. Qc2+ {[%clk 0:00:20]}  Kf6 {[%clk 0:00:04]} 52. a4 {[%clk 0:00:17]}  Qf1+ {[%clk 0:00:03]} 53. Kb2 {[%clk 0:00:17]}  Qc4 {[%clk 0:00:04]} 54. Qb3 {[%clk 0:00:15]}  Qe2+ {[%clk 0:00:04]} 55. Ka3 {[%clk 0:00:15]}  Qe7+ {[%clk 0:00:05]} 56. Qb4 {[%clk 0:00:14]}  Qe1 {[%clk 0:00:05]} 57. a5 {[%clk 0:00:13]}  Qa1+ {[%clk 0:00:05]} 58. Kb3 {[%clk 0:00:13]}  Qb1+ {[%clk 0:00:06]} 59. Kc4 {[%clk 0:00:13]}  Qe4+ {[%clk 0:00:07]} 60. Kb5 {[%clk 0:00:12]}  Qe8+ {[%clk 0:00:06]} 61. Kc5 {[%clk 0:00:12]}  Qe5+ {[%clk 0:00:05]} 62. Kc4 {[%clk 0:00:12]}  Qe4+ {[%clk 0:00:05]} 63. Kb3 {[%clk 0:00:12]}  Qb1+ {[%clk 0:00:05]} 64. Ka4 {[%clk 0:00:12]}  Qa2+ {[%clk 0:00:06]} 65. Kb5 {[%clk 0:00:12]}  Qd5+ {[%clk 0:00:07]} 66. Qc5 {[%clk 0:00:10]}  Qb3+ {[%clk 0:00:06]} 67. Ka6 {[%clk 0:00:09]}  Qc2 {[%clk 0:00:03]} 68. c4 {[%clk 0:00:09]}  Ke6 {[%clk 0:00:02]} 69. Qb6+ {[%clk 0:00:07]}  Kd7 {[%clk 0:00:02]} 70. c5 {[%clk 0:00:08]}  Qd3+ {[%clk 0:00:02]} 71. Qb5+ {[%clk 0:00:07]}  Qxb5+ {[%clk 0:00:03]} 72. Kxb5 {[%clk 0:00:07]}  Kc7 {[%clk 0:00:04]} 73. a6 {[%clk 0:00:07]}  Kb8 {[%clk 0:00:05]} 74. c6 {[%clk 0:00:07]}  Ka7 {[%clk 0:00:05]} 75. Ka5 {[%clk 0:00:06]}  Kb8 {[%clk 0:00:05]} 76. Kb6 {[%clk 0:00:07]}  Ka8 {[%clk 0:00:06]} 77. Kb5 {[%clk 0:00:04]}  Kb8 {[%clk 0:00:06]} 78. Kc5 {[%clk 0:00:04]}  Ka7 {[%clk 0:00:07]} 79. Kd6 {[%clk 0:00:04]}  Kb8 {[%clk 0:00:04]} 80. c7+ {[%clk 0:00:04]}  Ka7 {[%clk 0:00:04]} 81. Kd7 {[%clk 0:00:03]}  Kb6 {[%clk 0:00:03]} 82. c8=Q {[%clk 0:00:03]}  Ka5 {[%clk 0:00:03]} 83. Qd8+ {[%clk 0:00:04]}  Kb4 {[%clk 0:00:04]} 84. a7 {[%clk 0:00:03]}  Kc5 {[%clk 0:00:05]} 85. a8=Q {[%clk 0:00:03]}  Kc4 {[%clk 0:00:06]} 86. Qa7 {[%clk 0:00:04]}  Kc3 {[%clk 0:00:07]} 87. Qa6 {[%clk 0:00:04]}  Kc2 {[%clk 0:00:08]} 88. Qe7 {[%clk 0:00:04]}  Kc3 {[%clk 0:00:08]} 89. Qee6 {[%clk 0:00:05]}  Kd4 {[%clk 0:00:09]} 90. Qb5 {[%clk 0:00:05]}  Kc3 {[%clk 0:00:09]} 91. Qbc4+ {[%clk 0:00:05]}  Kb2 {[%clk 0:00:09]} 92. Qe5+ {[%clk 0:00:05]}  Ka3 {[%clk 0:00:09]} 93. Qcc3+ {[%clk 0:00:06]} 1-0


[Site "https://www.chess.com"]

[Event "Early Titled Tuesday Blitz | February 8 2022"]
[White "Zhigalko, Sergei"]
[Black "Ohanyan, Emin"]
[WhiteFideId "13502956"]
[BlackFideId "13312022"]
[WhiteElo "2662"]
[BlackElo "1809"]
[Result "1-0"]
[Round "03"]
[TimeControl "180+1"]
[Date "2022.02.08"]
[WhiteClock "0:00:06"]
[BlackClock "0:00:02"]

1. e4 {[%clk 0:03:00]}  e5 {[%clk 0:02:54]} 2. Nf3 {[%clk 0:03:00]}  Nc6 {[%clk 0:02:54]} 3. Bc4 {[%clk 0:02:59]}  Nf6 {[%clk 0:02:55]} 4. d3 {[%clk 0:02:59]}  Bc5 {[%clk 0:02:54]} 5. O-O {[%clk 0:02:58]}  O-O {[%clk 0:02:55]} 6. Nc3 {[%clk 0:02:57]}  h6 {[%clk 0:02:31]} 7. Nd5 {[%clk 0:02:54]}  d6 {[%clk 0:02:29]} 8. c3 {[%clk 0:02:54]}  Nxd5 {[%clk 0:02:26]} 9. Bxd5 {[%clk 0:02:54]}  Ne7 {[%clk 0:02:27]} 10. Bb3 {[%clk 0:02:54]}  Bb6 {[%clk 0:02:23]} 11. Nh4 {[%clk 0:02:12]}  Kh7 {[%clk 0:01:06]} 12. Qh5 {[%clk 0:02:09]}  Qe8 {[%clk 0:00:47]} 13. a4 {[%clk 0:01:11]}  a5 {[%clk 0:00:23]} 14. Be3 {[%clk 0:01:11]}  Ba7 {[%clk 0:00:17]} 15. Bxa7 {[%clk 0:00:53]}  Rxa7 {[%clk 0:00:18]} 16. d4 {[%clk 0:00:52]}  f6 {[%clk 0:00:15]} 17. Qxe8 {[%clk 0:00:53]}  Rxe8 {[%clk 0:00:16]} 18. Rfe1 {[%clk 0:00:44]}  g5 {[%clk 0:00:13]} 19. Nf3 {[%clk 0:00:44]}  Ra8 {[%clk 0:00:09]} 20. Nd2 {[%clk 0:00:40]}  b6 {[%clk 0:00:09]} 21. Rad1 {[%clk 0:00:37]}  Kg7 {[%clk 0:00:10]} 22. Nf1 {[%clk 0:00:35]}  Ng6 {[%clk 0:00:08]} 23. Ne3 {[%clk 0:00:32]}  Ne7 {[%clk 0:00:06]} 24. f3 {[%clk 0:00:26]}  Bd7 {[%clk 0:00:04]} 25. Kf2 {[%clk 0:00:24]}  Rad8 {[%clk 0:00:04]} 26. Rh1 {[%clk 0:00:20]}  Rh8 {[%clk 0:00:05]} 27. h4 {[%clk 0:00:20]}  Bc6 {[%clk 0:00:02]} 28. Rh2 {[%clk 0:00:12]}  Bb7 {[%clk 0:00:02]} 29. Rdh1 {[%clk 0:00:12]}  Bc8 {[%clk 0:00:01]} 30. Bc4 {[%clk 0:00:10]}  c6 {[%clk 0:00:01]} 31. Bb3 {[%clk 0:00:09]}  Ng6 {[%clk 0:00:02]} 32. g3 {[%clk 0:00:09]}  Ne7 {[%clk 0:00:02]} 33. Nc4 {[%clk 0:00:05]}  b5 {[%clk 0:00:01]} 34. Nxa5 {[%clk 0:00:05]}  Bd7 {[%clk 0:00:01]} 35. Nb7 {[%clk 0:00:05]}  Rb8 {[%clk 0:00:01]} 36. Nxd6 {[%clk 0:00:04]}  bxa4 {[%clk 0:00:02]} 37. Bxa4 {[%clk 0:00:05]}  Rxb2+ {[%clk 0:00:03]} 38. Ke3 {[%clk 0:00:06]}  Ra8 {[%clk 0:00:02]} 39. Rxb2 {[%clk 0:00:06]}  Rxa4 {[%clk 0:00:02]} 40. Rb7 {[%clk 0:00:06]} 1-0


[Site "https://www.chess.com"]

[Event "Early Titled Tuesday Blitz | February 8 2022"]
[White "Aaditya Dhingra"]
[Black "Rasulov, Vugar"]
[WhiteFideId "25678191"]
[BlackFideId "13402390"]
[WhiteElo "1789"]
[BlackElo "2560"]
[Result "1-0"]
[Round "04"]
[TimeControl "180+1"]
[Date "2022.02.08"]
[WhiteClock "0:00:04"]
[BlackClock "0:00:50"]

1. e4 {[%clk 0:03:00]}  d5 {[%clk 0:02:59]} 2. exd5 {[%clk 0:03:00]}  Qxd5 {[%clk 0:03:00]} 3. Nc3 {[%clk 0:02:59]}  Qa5 {[%clk 0:03:00]} 4. d4 {[%clk 0:02:58]}  Nf6 {[%clk 0:03:01]} 5. Bc4 {[%clk 0:02:54]}  c6 {[%clk 0:03:01]} 6. Ne2 {[%clk 0:02:53]}  Bg4 {[%clk 0:03:00]} 7. f3 {[%clk 0:02:52]}  Bh5 {[%clk 0:03:00]} 8. O-O {[%clk 0:02:52]}  Nbd7 {[%clk 0:03:00]} 9. Nf4 {[%clk 0:02:42]}  Bg6 {[%clk 0:02:59]} 10. Kh1 {[%clk 0:02:38]}  e6 {[%clk 0:03:00]} 11. Qe2 {[%clk 0:02:34]}  O-O-O {[%clk 0:02:55]} 12. Bd2 {[%clk 0:02:28]}  Qc7 {[%clk 0:02:55]} 13. a4 {[%clk 0:02:11]}  Bd6 {[%clk 0:02:55]} 14. g3 {[%clk 0:02:02]}  Nd5 {[%clk 0:02:50]} 15. Bxd5 {[%clk 0:01:53]}  exd5 {[%clk 0:02:51]} 16. a5 {[%clk 0:01:51]}  Rhe8 {[%clk 0:02:48]} 17. Qf2 {[%clk 0:01:47]}  Nf6 {[%clk 0:02:48]} 18. Rfc1 {[%clk 0:01:40]}  Re7 {[%clk 0:02:44]} 19. Na4 {[%clk 0:01:31]}  Rde8 {[%clk 0:02:43]} 20. Nc5 {[%clk 0:01:19]}  Bxc5 {[%clk 0:02:37]} 21. dxc5 {[%clk 0:01:18]}  a6 {[%clk 0:02:37]} 22. Bc3 {[%clk 0:01:12]}  Nd7 {[%clk 0:02:35]} 23. Bd4 {[%clk 0:01:05]}  Ne5 {[%clk 0:02:32]} 24. Re1 {[%clk 0:00:59]}  Nxf3 {[%clk 0:02:29]} 25. Rxe7 {[%clk 0:00:57]}  Rxe7 {[%clk 0:02:30]} 26. Nxg6 {[%clk 0:00:57]}  hxg6 {[%clk 0:02:12]} 27. Qxf3 {[%clk 0:00:57]}  f6 {[%clk 0:02:11]} 28. Qg4+ {[%clk 0:00:55]}  Kb8 {[%clk 0:02:11]} 29. Qxg6 {[%clk 0:00:55]}  Qd7 {[%clk 0:02:12]} 30. Qd3 {[%clk 0:00:51]}  Re4 {[%clk 0:02:10]} 31. c3 {[%clk 0:00:50]}  Qe6 {[%clk 0:02:06]} 32. Rf1 {[%clk 0:00:48]}  Ka7 {[%clk 0:02:04]} 33. Qf3 {[%clk 0:00:46]}  Re2 {[%clk 0:02:00]} 34. Rf2 {[%clk 0:00:45]}  Re1+ {[%clk 0:02:00]} 35. Kg2 {[%clk 0:00:45]}  Qe8 {[%clk 0:01:59]} 36. Rd2 {[%clk 0:00:43]}  Qg6 {[%clk 0:01:57]} 37. Re2 {[%clk 0:00:41]}  Ra1 {[%clk 0:01:55]} 38. Bf2 {[%clk 0:00:31]}  Rxa5 {[%clk 0:01:53]} 39. b4 {[%clk 0:00:30]}  Ra1 {[%clk 0:01:51]} 40. c4 {[%clk 0:00:28]}  dxc4 {[%clk 0:01:47]} 41. Qf4 {[%clk 0:00:25]}  Qd3 {[%clk 0:01:33]} 42. Qe4 {[%clk 0:00:20]}  Qb3 {[%clk 0:01:14]} 43. Qf4 {[%clk 0:00:19]}  Qd1 {[%clk 0:01:12]} 44. Re1 {[%clk 0:00:19]}  Qd5+ {[%clk 0:01:13]} 45. Qf3 {[%clk 0:00:19]}  Qxf3+ {[%clk 0:01:02]} 46. Kxf3 {[%clk 0:00:18]}  Ra3+ {[%clk 0:01:03]} 47. Ke4 {[%clk 0:00:18]}  Ra2 {[%clk 0:01:02]} 48. Kf3 {[%clk 0:00:16]}  a5 {[%clk 0:01:02]} 49. bxa5 {[%clk 0:00:15]}  Ka6 {[%clk 0:01:03]} 50. Rc1 {[%clk 0:00:15]}  Ra4 {[%clk 0:01:00]} 51. Be1 {[%clk 0:00:14]}  Kb5 {[%clk 0:01:00]} 52. Rb1+ {[%clk 0:00:14]}  Ka6 {[%clk 0:00:59]} 53. Rb6+ {[%clk 0:00:13]}  Ka7 {[%clk 0:01:00]} 54. Ke2 {[%clk 0:00:13]}  Ra2+ {[%clk 0:01:00]} 55. Ke3 {[%clk 0:00:13]}  Rxh2 {[%clk 0:00:59]} 56. Kd4 {[%clk 0:00:13]}  Re2 {[%clk 0:00:58]} 57. Bc3 {[%clk 0:00:13]}  Rg2 {[%clk 0:00:58]} 58. a6 {[%clk 0:00:11]}  bxa6 {[%clk 0:00:55]} 59. Rxc6 {[%clk 0:00:11]}  Rxg3 {[%clk 0:00:55]} 60. Kxc4 {[%clk 0:00:09]}  Rg2 {[%clk 0:00:50]} 61. Rc7+ {[%clk 0:00:08]}  Kb8 {[%clk 0:00:50]} 62. Rf7 {[%clk 0:00:08]}  Rg5 {[%clk 0:00:49]} 63. c6 {[%clk 0:00:06]}  Kc8 {[%clk 0:00:50]} 64. Bb4 {[%clk 0:00:04]}  Rg2 {[%clk 0:00:49]} 65. Bd6 {[%clk 0:00:04]}  Rc2+ {[%clk 0:00:49]} 66. Kd5 {[%clk 0:00:04]}  Rd2+ {[%clk 0:00:49]} 67. Kc5 {[%clk 0:00:04]}  Rc2+ {[%clk 0:00:49]} 68. Kb6 {[%clk 0:00:04]}  Rb2+ {[%clk 0:00:49]} 69. Ka7 {[%clk 0:00:04]}  Ra2 {[%clk 0:00:50]} 70. Rf8# {[%clk 0:00:04]} 1-0


[Site "https://www.chess.com"]

[Event "Early Titled Tuesday Blitz | February 8 2022"]
[White "Aggelis, Nikolaos"]
[Black "Dew, Brian"]
[WhiteFideId "4213220"]
[BlackFideId "6000495"]
[WhiteElo "2154"]
[BlackElo "2118"]
[Result "1-0"]
[Round "04"]
[TimeControl "180+1"]
[Date "2022.02.08"]
[WhiteClock "0:00:14"]
[BlackClock "0:00:09"]

1. d4 {[%clk 0:03:00]}  b6 {[%clk 0:02:58]} 2. g3 {[%clk 0:02:57]}  Bb7 {[%clk 0:02:58]} 3. Nf3 {[%clk 0:02:57]}  g6 {[%clk 0:02:56]} 4. Bg2 {[%clk 0:02:57]}  Bg7 {[%clk 0:02:56]} 5. O-O {[%clk 0:02:58]}  Nf6 {[%clk 0:02:55]} 6. b3 {[%clk 0:02:57]}  c5 {[%clk 0:02:54]} 7. Bb2 {[%clk 0:02:55]}  cxd4 {[%clk 0:02:53]} 8. Qxd4 {[%clk 0:02:55]}  Nh5 {[%clk 0:02:50]} 9. Qxg7 {[%clk 0:02:53]}  Nxg7 {[%clk 0:02:49]} 10. Bxg7 {[%clk 0:02:54]}  Rg8 {[%clk 0:02:49]} 11. Bb2 {[%clk 0:02:53]}  Nc6 {[%clk 0:02:49]} 12. c4 {[%clk 0:02:54]}  Qc7 {[%clk 0:02:49]} 13. Nc3 {[%clk 0:02:54]}  e6 {[%clk 0:02:44]} 14. Nb5 {[%clk 0:02:53]}  Qb8 {[%clk 0:02:41]} 15. Ba3 {[%clk 0:02:54]}  f6 {[%clk 0:02:28]} 16. Bd6 {[%clk 0:02:43]}  Qc8 {[%clk 0:02:25]} 17. Nc7+ {[%clk 0:02:42]}  Kf7 {[%clk 0:02:26]} 18. Nxa8 {[%clk 0:02:42]}  Bxa8 {[%clk 0:02:23]} 19. Rfd1 {[%clk 0:02:42]}  Ne7 {[%clk 0:02:20]} 20. Rd2 {[%clk 0:02:29]}  Nf5 {[%clk 0:02:12]} 21. Rad1 {[%clk 0:02:28]}  Qa6 {[%clk 0:02:02]} 22. a4 {[%clk 0:02:17]}  Rc8 {[%clk 0:01:59]} 23. g4 {[%clk 0:02:12]}  Nxd6 {[%clk 0:01:57]} 24. Rxd6 {[%clk 0:02:12]}  Bc6 {[%clk 0:01:56]} 25. Nd4 {[%clk 0:02:10]}  Bxg2 {[%clk 0:01:39]} 26. Kxg2 {[%clk 0:02:11]}  Qb7+ {[%clk 0:01:14]} 27. f3 {[%clk 0:02:05]}  a6 {[%clk 0:01:11]} 28. Nxe6 {[%clk 0:01:56]}  Ke7 {[%clk 0:01:10]} 29. Nf4 {[%clk 0:01:51]}  Rc7 {[%clk 0:01:02]} 30. Rxb6 {[%clk 0:01:49]}  Qa7 {[%clk 0:00:39]} 31. Nd5+ {[%clk 0:01:49]}  Kf7 {[%clk 0:00:36]} 32. Rxf6+ {[%clk 0:01:46]}  Kg7 {[%clk 0:00:37]} 33. g5 {[%clk 0:00:54]}  Rc6 {[%clk 0:00:37]} 34. Rf4 {[%clk 0:00:49]}  Qb7 {[%clk 0:00:37]} 35. Rd3 {[%clk 0:00:47]}  Re6 {[%clk 0:00:35]} 36. e4 {[%clk 0:00:45]}  Qb8 {[%clk 0:00:29]} 37. Rf6 {[%clk 0:00:44]}  Qe5 {[%clk 0:00:28]} 38. h4 {[%clk 0:00:40]}  h6 {[%clk 0:00:26]} 39. gxh6+ {[%clk 0:00:32]}  Kxh6 {[%clk 0:00:27]} 40. Rxe6 {[%clk 0:00:32]}  dxe6 {[%clk 0:00:27]} 41. Ne3 {[%clk 0:00:32]}  Qb2+ {[%clk 0:00:25]} 42. Kg3 {[%clk 0:00:33]}  Qe2 {[%clk 0:00:24]} 43. Ng4+ {[%clk 0:00:33]}  Kh5 {[%clk 0:00:20]} 44. Rd7 {[%clk 0:00:21]}  Qe1+ {[%clk 0:00:21]} 45. Kf4 {[%clk 0:00:20]}  Qc1+ {[%clk 0:00:14]} 46. Ke5 {[%clk 0:00:18]}  Kxh4 {[%clk 0:00:13]} 47. Kxe6 {[%clk 0:00:16]}  Qf4 {[%clk 0:00:11]} 48. Ne5 {[%clk 0:00:16]}  g5 {[%clk 0:00:08]} 49. Ng6+ {[%clk 0:00:14]}  Kg3 {[%clk 0:00:09]} 50. Nxf4 {[%clk 0:00:15]}  gxf4 {[%clk 0:00:09]} 51. Rd3 {[%clk 0:00:14]} 1-0


[Site "https://www.chess.com"]

[Event "Early Titled Tuesday Blitz | February 8 2022"]
[White "Al-Tarboush, Ward"]
[Black "Ter-Sahakyan, Samvel"]
[WhiteFideId "7601450"]
[BlackFideId "13302531"]
[WhiteElo "2276"]
[BlackElo "2592"]
[Result "0-1"]
[Round "04"]
[TimeControl "180+1"]
[Date "2022.02.08"]
[WhiteClock "0:00:33"]
[BlackClock "0:00:28"]

1. d4 {[%clk 0:03:00]}  Nf6 {[%clk 0:02:59]} 2. Nc3 {[%clk 0:03:01]}  e6 {[%clk 0:02:57]} 3. e4 {[%clk 0:02:59]}  d5 {[%clk 0:02:58]} 4. exd5 {[%clk 0:03:00]}  exd5 {[%clk 0:02:57]} 5. Bg5 {[%clk 0:03:00]}  Bb4 {[%clk 0:02:55]} 6. Bd3 {[%clk 0:02:55]}  h6 {[%clk 0:02:46]} 7. Bf4 {[%clk 0:02:50]}  O-O {[%clk 0:02:44]} 8. Ne2 {[%clk 0:02:50]}  c6 {[%clk 0:02:27]} 9. f3 {[%clk 0:02:50]}  c5 {[%clk 0:02:08]} 10. dxc5 {[%clk 0:02:48]}  Nc6 {[%clk 0:02:01]} 11. a3 {[%clk 0:02:33]}  Bxc5 {[%clk 0:02:00]} 12. Qd2 {[%clk 0:02:34]}  Re8 {[%clk 0:01:41]} 13. O-O-O {[%clk 0:02:25]}  Ne5 {[%clk 0:01:22]} 14. Kb1 {[%clk 0:02:24]}  d4 {[%clk 0:01:11]} 15. Ne4 {[%clk 0:02:13]}  Nxd3 {[%clk 0:01:10]} 16. cxd3 {[%clk 0:02:14]}  Bf8 {[%clk 0:01:04]} 17. Rc1 {[%clk 0:02:10]}  Nd5 {[%clk 0:01:02]} 18. g4 {[%clk 0:02:03]}  Qb6 {[%clk 0:00:49]} 19. Ka1 {[%clk 0:01:47]}  Be6 {[%clk 0:00:46]} 20. h4 {[%clk 0:01:43]}  Rac8 {[%clk 0:00:42]} 21. h5 {[%clk 0:01:41]}  Bb4 {[%clk 0:00:37]} 22. Rxc8 {[%clk 0:01:24]}  Rxc8 {[%clk 0:00:35]} 23. axb4 {[%clk 0:01:08]}  Qa6+ {[%clk 0:00:32]} 24. Kb1 {[%clk 0:01:07]}  Nxf4 {[%clk 0:00:32]} 25. Nc1 {[%clk 0:00:36]}  Nxd3 {[%clk 0:00:30]} 26. Qxd3 {[%clk 0:00:33]}  Rxc1+ {[%clk 0:00:28]} 0-1


[Site "https://www.chess.com"]

[Event "Early Titled Tuesday Blitz | February 8 2022"]
[White "Andreikin, Dmitry"]
[Black "Kopylov, Alexander A."]
[WhiteFideId "4158814"]
[BlackFideId "4164857"]
[WhiteElo "2736"]
[BlackElo "2436"]
[Result "0-1"]
[Round "04"]
[TimeControl "180+1"]
[Date "2022.02.08"]
[WhiteClock "0:00:03"]
[BlackClock "0:00:16"]

1. c4 {[%clk 0:03:00]}  Nf6 {[%clk 0:02:59]} 2. Nc3 {[%clk 0:03:00]}  g6 {[%clk 0:03:00]} 3. e4 {[%clk 0:02:58]}  d6 {[%clk 0:03:00]} 4. d4 {[%clk 0:02:58]}  Bg7 {[%clk 0:03:00]} 5. h3 {[%clk 0:02:59]}  O-O {[%clk 0:03:00]} 6. Be3 {[%clk 0:02:59]}  a6 {[%clk 0:03:01]} 7. Nf3 {[%clk 0:02:57]}  Nbd7 {[%clk 0:03:01]} 8. Be2 {[%clk 0:02:56]}  e5 {[%clk 0:03:01]} 9. d5 {[%clk 0:02:54]}  Nh5 {[%clk 0:03:01]} 10. g3 {[%clk 0:02:52]}  f5 {[%clk 0:03:01]} 11. exf5 {[%clk 0:02:50]}  gxf5 {[%clk 0:02:43]} 12. Ng5 {[%clk 0:02:50]}  f4 {[%clk 0:02:43]} 13. Ne6 {[%clk 0:02:48]}  fxe3 {[%clk 0:02:34]} 14. Nxd8 {[%clk 0:02:46]}  exf2+ {[%clk 0:02:34]} 15. Kd2 {[%clk 0:02:46]}  Nxg3 {[%clk 0:02:33]} 16. Ne6 {[%clk 0:02:43]}  Nc5 {[%clk 0:02:19]} 17. Nxf8 {[%clk 0:02:39]}  Bh6+ {[%clk 0:02:18]} 18. Kc2 {[%clk 0:02:32]}  Bf5+ {[%clk 0:02:18]} 19. Ne4 {[%clk 0:02:21]}  Bxe4+ {[%clk 0:01:30]} 20. Kc3 {[%clk 0:02:21]}  Rxf8 {[%clk 0:01:23]} 21. b4 {[%clk 0:02:10]}  Bxh1 {[%clk 0:00:54]} 22. bxc5 {[%clk 0:02:06]}  Bg2 {[%clk 0:00:54]} 23. cxd6 {[%clk 0:01:40]}  cxd6 {[%clk 0:00:55]} 24. c5 {[%clk 0:01:37]}  Be3 {[%clk 0:00:49]} 25. Bd3 {[%clk 0:01:13]}  Bd4+ {[%clk 0:00:45]} 26. Kc4 {[%clk 0:01:06]}  Rf4 {[%clk 0:00:44]} 27. cxd6 {[%clk 0:00:51]}  Bxa1+ {[%clk 0:00:44]} 28. Kb3 {[%clk 0:00:52]}  Bd4 {[%clk 0:00:38]} 29. d7 {[%clk 0:00:51]}  Bb6 {[%clk 0:00:38]} 30. Qc2 {[%clk 0:00:45]}  Bxd5+ {[%clk 0:00:35]} 31. Ka3 {[%clk 0:00:45]}  Rf3 {[%clk 0:00:24]} 32. Kb2 {[%clk 0:00:30]}  Rxd3 {[%clk 0:00:19]} 33. Qxf2 {[%clk 0:00:29]}  Bxf2 {[%clk 0:00:17]} 34. d8=Q+ {[%clk 0:00:29]}  Kf7 {[%clk 0:00:18]} 35. Qd7+ {[%clk 0:00:28]}  Kf6 {[%clk 0:00:18]} 36. Qxh7 {[%clk 0:00:28]}  Bd4+ {[%clk 0:00:17]} 37. Kc1 {[%clk 0:00:24]}  Ne2+ {[%clk 0:00:16]} 38. Kc2 {[%clk 0:00:24]}  Nf4 {[%clk 0:00:16]} 39. Qh6+ {[%clk 0:00:21]}  Kf5 {[%clk 0:00:16]} 40. Qh7+ {[%clk 0:00:22]}  Ke6 {[%clk 0:00:16]} 41. Qg8+ {[%clk 0:00:22]}  Kd7 {[%clk 0:00:17]} 42. Qg7+ {[%clk 0:00:18]}  Kd6 {[%clk 0:00:17]} 43. Qf8+ {[%clk 0:00:18]}  Kc6 {[%clk 0:00:18]} 44. Qf6+ {[%clk 0:00:16]}  Kb5 {[%clk 0:00:18]} 45. h4 {[%clk 0:00:13]}  Rc3+ {[%clk 0:00:18]} 46. Kd2 {[%clk 0:00:13]}  Rd3+ {[%clk 0:00:18]} 47. Kc2 {[%clk 0:00:13]}  Rh3 {[%clk 0:00:19]} 48. a4+ {[%clk 0:00:10]}  Ka5 {[%clk 0:00:17]} 49. Qd8+ {[%clk 0:00:10]}  b6 {[%clk 0:00:17]} 50. Qc8 {[%clk 0:00:04]}  Rh2+ {[%clk 0:00:18]} 51. Kd1 {[%clk 0:00:04]}  Bf3+ {[%clk 0:00:18]} 52. Kc1 {[%clk 0:00:04]}  Be3+ {[%clk 0:00:15]} 53. Kb1 {[%clk 0:00:04]}  Be4+ {[%clk 0:00:16]} 54. Ka1 {[%clk 0:00:03]}  Bd4+ {[%clk 0:00:16]} 0-1


[Site "https://www.chess.com"]

[Event "Early Titled Tuesday Blitz | February 8 2022"]
[White "Araujo Sanchez, Josue"]
[Black "Berezin, Viktor"]
[WhiteFideId "6416896"]
[BlackFideId "14107872"]
[WhiteElo "2357"]
[BlackElo "2310"]
[Result "1-0"]
[Round "04"]
[TimeControl "180+1"]
[Date "2022.02.08"]
[WhiteClock "0:00:33"]
[BlackClock "0:01:31"]

1. e4 {[%clk 0:02:52]}  d5 {[%clk 0:02:59]} 2. exd5 {[%clk 0:02:51]}  Nf6 {[%clk 0:02:58]} 3. c4 {[%clk 0:02:50]}  c6 {[%clk 0:02:53]} 4. Nc3 {[%clk 0:02:50]}  cxd5 {[%clk 0:02:51]} 5. cxd5 {[%clk 0:02:51]}  Nxd5 {[%clk 0:02:48]} 6. d4 {[%clk 0:02:49]}  Nc6 {[%clk 0:02:41]} 7. Nf3 {[%clk 0:02:46]}  g6 {[%clk 0:02:37]} 8. Bc4 {[%clk 0:02:45]}  Nb6 {[%clk 0:02:25]} 9. Bb3 {[%clk 0:02:01]}  e6 {[%clk 0:02:22]} 10. Bg5 {[%clk 0:01:59]}  Be7 {[%clk 0:02:22]} 11. h4 {[%clk 0:01:57]}  h6 {[%clk 0:02:21]} 12. Bxe7 {[%clk 0:01:54]}  Qxe7 {[%clk 0:02:22]} 13. Qd2 {[%clk 0:01:53]}  Na5 {[%clk 0:02:16]} 14. O-O {[%clk 0:01:49]}  Nxb3 {[%clk 0:02:13]} 15. axb3 {[%clk 0:01:50]}  h5 {[%clk 0:02:02]} 16. Rfe1 {[%clk 0:01:48]}  Kf8 {[%clk 0:02:00]} 17. d5 {[%clk 0:01:46]}  Kg7 {[%clk 0:01:59]} 18. Ng5 {[%clk 0:01:41]}  Rd8 {[%clk 0:01:52]} 19. Rad1 {[%clk 0:01:31]}  Qf6 {[%clk 0:01:51]} 20. Nce4 {[%clk 0:01:15]}  Qe5 {[%clk 0:01:36]} 21. f4 {[%clk 0:00:37]}  Qc7 {[%clk 0:01:31]} 22. d6 {[%clk 0:00:33]} 1-0


[Site "https://www.chess.com"]